bitfinex-derivatives/quotes_BTCF0:USTF0_20250926
["timestamp","ask_amount","ask_price","bid_price","bid_amount"]
[1758877794326,0.85986,109620.0,109610.0,0.4851504]
[1758877794626,0.9505233,109620.0,109610.0,0.4851504]
[1758877795629,0.9505233,109620.0,109610.0,0.8459504]
[1758877796630,0.85938,109620.0,109610.0,0.8459504]
[1758877796834,0.85938,109620.0,109610.0,1.1962591]
[1758877798332,0.02182,109620.0,109610.0,1.1962591]
[1758877798630,0.85934,109620.0,109610.0,1.1962591]
[1758877798819,0.8593,109620.0,109610.0,1.1962591]
[1758877799622,0.4745898,109630.0,109620.0,0.1049833]
[1758877799828,1.31292676,109630.0,109620.0,0.8283607]
[1758877800127,1.33557676,109630.0,109620.0,0.8283607]
[1758877800324,1.33557676,109630.0,109620.0,0.1277433]
[1758877800532,1.68588546,109630.0,109620.0,0.478052]
[1758877800731,1.33557676,109630.0,109620.0,0.83754871]
[1758877801329,0.0911331,109640.0,109630.0,0.091135]
[1758877801636,0.86017,109640.0,109630.0,1.1891524]
[1758877801933,0.9512967,109640.0,109630.0,0.4780437]
[1758877802233,0.86017,109640.0,109630.0,0.4780437]
[1758877802536,0.9526967,109640.0,109630.0,0.4780437]
[1758877802930,0.9586967,109640.0,109630.0,0.127735]
[1758877803131,0.9586967,109640.0,109630.0,0.4780437]
[1758877803534,0.9526967,109640.0,109630.0,0.4840437]
[1758877804929,0.9516967,109640.0,109630.0,0.4860437]
[1758877806228,0.9516967,109640.0,109630.0,0.4840437]
[1758877806434,0.9516967,109640.0,109630.0,0.4860437]
[1758877808938,0.9516967,109640.0,109630.0,0.135735]
[1758877809430,0.9516967,109640.0,109630.0,0.4860437]
[1758877809933,2.0628054,109640.0,109630.0,0.3949087]
[1758877810231,2.08617288,109640.0,109630.0,0.3949087]
[1758877811130,1.73586418,109640.0,109630.0,0.3949087]
[1758877811324,2.08617288,109640.0,109630.0,0.3949087]
[1758877812839,2.08617288,109640.0,109630.0,0.4860437]
[1758877814244,2.0628054,109640.0,109630.0,0.4860437]
[1758877814438,1.7020054,109640.0,109630.0,0.4860437]
[1758877814740,0.02265,109640.0,109630.0,0.8363524]
[1758877814938,0.86209,109640.0,109630.0,0.8363524]
[1758877815339,0.86209,109640.0,109630.0,0.4860437]
[1758877815833,0.4744252,109650.0,109640.0,0.1267267]
[1758877816142,0.49781323,109650.0,109640.0,0.0356]
[1758877816343,1.33761323,109650.0,109640.0,0.7362174]
[1758877816540,1.33761323,109650.0,109640.0,0.50261898]
[1758877816741,1.33761323,109650.0,109640.0,0.0356]
[1758877816940,1.33761323,109650.0,109640.0,0.50261898]
[1758877817840,1.33761323,109650.0,109640.0,0.0356]
[1758877818045,0.49781323,109650.0,109640.0,0.0356]
[1758877818344,1.33761323,109650.0,109640.0,0.0356]
[1758877819544,0.49781323,109650.0,109640.0,0.0356]
[1758877819951,1.33761323,109650.0,109640.0,0.50261898]
[1758877822341,0.49781323,109650.0,109640.0,0.50261898]
[1758877822546,1.33729323,109650.0,109640.0,0.50261898]
[1758877823047,1.33729323,109650.0,109640.0,0.0356]
[1758877823240,1.33729323,109650.0,109640.0,0.50261898]
[1758877824949,1.33729323,109650.0,109640.0,0.0356]
[1758877825945,1.33729323,109650.0,109640.0,0.50261898]
[1758877826146,1.33729323,109650.0,109640.0,0.0356]
[1758877827747,0.1130061,109640.0,109630.0,0.50271898]
[1758877827949,0.4738061,109640.0,109630.0,0.50271898]
[1758877828345,0.96400581,109640.0,109630.0,0.0357]
[1758877828650,0.49698683,109640.0,109630.0,0.0357]
[1758877828846,0.13618683,109640.0,109630.0,0.50871898]
[1758877829055,0.04506073,109640.0,109630.0,0.51071898]
[1758877829351,0.04506073,109640.0,109630.0,0.60185338]
[1758877829557,0.86314073,109640.0,109630.0,0.60185338]
[1758877829849,0.97614673,109640.0,109630.0,0.51071898]
[1758877836152,0.952766,109640.0,109630.0,0.51071898]
[1758877836354,0.97601214,109640.0,109630.0,0.51071898]
[1758877837155,0.952766,109640.0,109630.0,0.51071898]
[1758877840056,0.952766,109640.0,109630.0,0.0437]
[1758877840260,2.21476146,109640.0,109630.0,0.008]
[1758877840454,1.81476146,109640.0,109630.0,0.008]
[1758877843955,2.21476146,109640.0,109630.0,0.0004706]
[1758877844157,2.21476146,109640.0,109600.0,0.90618032]
[1758877844158,0.113031,109610.0,109600.0,0.03497]
[1758877844351,0.952111,109610.0,109600.0,0.03497]
[1758877845056,1.312911,109610.0,109600.0,0.03497]
[1758877845362,1.312911,109610.0,109600.0,0.04097]
[1758877845557,1.312911,109610.0,109600.0,0.06497]
[1758877847064,1.312911,109610.0,109600.0,0.53198898]
[1758877847460,1.312911,109610.0,109600.0,0.03]
[1758877847766,2.17992998,109610.0,109600.0,0.03]
[1758877847962,2.20350188,109610.0,109600.0,0.03]
[1758877849465,2.20350188,109610.0,109600.0,0.05186]
[1758877849466,1.7364829,109610.0,109600.0,0.05186]
[1758877849668,1.712911,109610.0,109600.0,0.06497]
[1758877849863,1.712911,109610.0,109600.0,0.03]
[1758877850058,2.20347929,109610.0,109600.0,0.03]
[1758877850259,2.20347929,109610.0,109600.0,0.05186]
[1758877850968,2.20347929,109610.0,109600.0,0.03]
[1758877855170,1.73646031,109610.0,109600.0,0.03]
[1758877855358,2.20347929,109610.0,109600.0,0.03]
[1758877857071,0.49738031,109610.0,109600.0,0.06602]
[1758877857364,0.38268,109610.0,109600.0,1.40005796]
[1758877857670,0.4739664,109620.0,109610.0,0.03602]
[1758877857867,0.9525264,109620.0,109610.0,0.51208499]
[1758877858364,0.9525664,109620.0,109610.0,0.51208499]
[1758877858566,0.9437087,109620.0,109610.0,0.50303898]
[1758877859272,0.9437087,109620.0,109610.0,0.51603898]
[1758877860466,0.9437087,109620.0,109610.0,0.52003898]
[1758877860668,0.1043087,109620.0,109610.0,0.52003898]
[1758877860868,0.9435887,109620.0,109610.0,0.52003898]
[1758877861875,1.3043887,109620.0,109610.0,0.05302]
[1758877862075,1.3043887,109620.0,109610.0,0.017]
[1758877862076,1.77140768,109620.0,109610.0,0.017]
[1758877862666,1.77140768,109620.0,109610.0,0.03916]
[1758877862667,1.3043887,109620.0,109610.0,0.03916]
[1758877863063,1.3043887,109620.0,109610.0,0.05302]
[1758877864970,0.4651087,109620.0,109610.0,0.52003898]
[1758877865178,0.9436687,109620.0,109610.0,0.52003898]
[1758877866584,0.1043087,109620.0,109610.0,0.52003898]
[1758877866770,0.9433487,109620.0,109610.0,0.52003898]
[1758877872786,0.9433487,109620.0,109610.0,0.88083898]
[1758877873079,0.83904,109620.0,109610.0,0.97198608]
[1758877873387,0.9348223,109620.0,109610.0,0.88083898]
[1758877873982,0.9348223,109620.0,109610.0,0.97198788]
[1758877874282,0.0957823,109620.0,109610.0,1.37198788]
[1758877874480,0.4565703,109630.0,109620.0,0.14613069]
[1758877874677,1.2951303,109630.0,109620.0,0.05499009]
[1758877875079,1.2951303,109630.0,109620.0,0.52200907]
[1758877875684,0.0957703,109630.0,109620.0,0.61314897]
[1758877875986,0.9299703,109630.0,109620.0,0.62014897]
[1758877876187,0.9299703,109630.0,109620.0,0.62314897]
[1758877876491,0.83884,109630.0,109620.0,0.98394897]
[1758877876792,0.83884,109630.0,109620.0,1.21757113]
[1758877876980,0.9299708,109630.0,109620.0,1.21757113]
[1758877877385,0.9299308,109630.0,109620.0,1.61757113]
[1758877877891,0.9299308,109630.0,109620.0,1.70879119]
[1758877877892,0.0911308,109630.0,109620.0,1.70879119]
[1758877878090,0.9297708,109630.0,109620.0,1.70879119]
[1758877878587,0.73864,109630.0,109620.0,1.70879119]
[1758877879185,0.00464,109640.0,109630.0,0.03635]
[1758877879386,0.00464,109640.0,109630.0,0.4882807]
[1758877879387,0.8438,109640.0,109630.0,0.4882807]
[1758877879579,0.8438,109640.0,109630.0,0.83860127]
[1758877879784,0.9349224,109640.0,109630.0,0.83860127]
[1758877880792,0.9349224,109640.0,109630.0,0.83960127]
[1758877881687,0.9349224,109640.0,109630.0,0.84060127]
[1758877881884,0.9349224,109640.0,109630.0,0.84982299]
[1758877882284,0.8438,109640.0,109630.0,0.84982299]
[1758877885692,0.7438,109640.0,109630.0,0.84982299]
[1758877888596,0.44144017,109650.0,109640.0,0.03376]
[1758877888895,1.30261868,109650.0,109640.0,0.38408057]
[1758877890697,1.30761868,109650.0,109640.0,0.38408057]
[1758877892600,0.46949868,109650.0,109640.0,0.38408057]
[1758877892900,1.30717868,109650.0,109640.0,0.38408057]
[1758877896605,1.66797868,109650.0,109640.0,0.38408057]
[1758877899096,1.31765811,109650.0,109640.0,0.38408057]
[1758877899304,0.86573851,109650.0,109640.0,0.82552354]
[1758877899605,0.84208,109650.0,109640.0,1.20475895]
[1758877900304,0.84208,109650.0,109640.0,1.11363655]
[1758877900305,0.9331941,109650.0,109640.0,1.11363655]
[1758877900802,0.951201,109650.0,109640.0,1.11463655]
[1758877901904,0.951201,109650.0,109640.0,1.11563655]
[1758877903409,0.9281941,109650.0,109640.0,1.11563655]
[1758877904912,0.0911141,109650.0,109640.0,1.11563655]
[1758877905115,0.9279141,109650.0,109640.0,1.11563655]
[1758877906415,0.9509414,109650.0,109640.0,1.11563655]
[1758877908714,0.9509414,109650.0,109640.0,1.20675905]
[1758877909326,0.9509414,109650.0,109640.0,1.11563655]
[1758877909530,0.8509414,109650.0,109640.0,1.11563655]
[1758877909733,0.9420555,109650.0,109640.0,1.11563655]
[1758877910028,0.9420555,109650.0,109640.0,1.20675905]
[1758877910622,0.9190282,109650.0,109640.0,1.20675905]
[1758877910823,0.94205849,109650.0,109640.0,1.20675905]
[1758877911223,0.9190282,109650.0,109640.0,1.20675905]
[1758877911526,0.94205802,109650.0,109640.0,1.20675905]
[1758877913328,0.9190282,109650.0,109640.0,1.20675905]
[1758877915629,0.9190282,109650.0,109640.0,0.50611761]
[1758877915831,0.9190282,109650.0,109640.0,1.20675875]
[1758877918626,0.8279141,109650.0,109640.0,1.20675875]
[1758877919632,0.9190284,109650.0,109640.0,1.20675875]
[1758877921529,0.8279141,109650.0,109640.0,1.20675875]
[1758877922231,0.9190284,109650.0,109640.0,1.20675875]
[1758877922633,0.9190284,109650.0,109640.0,1.20675915]
[1758877924739,0.9190284,109650.0,109640.0,0.50611801]
[1758877924938,0.9190284,109650.0,109640.0,1.20675915]
[1758877928145,0.8279141,109650.0,109640.0,1.20675915]
[1758877928348,0.7279141,109650.0,109640.0,1.20675915]
[1758877929441,0.75076806,109650.0,109640.0,1.20675915]
[1758877929945,0.84188256,109650.0,109640.0,1.20675915]
[1758877930644,0.8190286,109650.0,109640.0,1.20675915]
[1758877930848,0.84188262,109650.0,109640.0,1.20675915]
[1758877931046,0.8190286,109650.0,109640.0,1.20675915]
[1758877932448,0.7279141,109650.0,109640.0,1.20675915]
[1758877933548,0.0911147,109650.0,109640.0,1.20675915]
[1758877933848,0.9278347,109650.0,109640.0,1.20675915]
[1758877935748,0.0911066,109660.0,109650.0,0.1270147]
[1758877936049,0.95068015,109660.0,109650.0,0.47733527]
[1758877936946,0.95568015,109660.0,109650.0,0.47733527]
[1758877938542,0.95568015,109660.0,109650.0,0.59390407]
[1758877944846,0.95568015,109660.0,109650.0,0.95470407]
[1758877945750,0.95568015,109660.0,109650.0,0.59390407]
[1758877945951,0.95564015,109660.0,109650.0,0.59390407]
[1758877948152,0.11896015,109660.0,109650.0,0.59390407]
[1758877948552,0.95564015,109660.0,109650.0,0.59390407]
[1758877951048,0.02785355,109660.0,109650.0,1.35470407]
[1758877951244,1.2886101,109680.0,109670.0,0.1271184]
[1758877951447,1.31144181,109680.0,109670.0,0.59400777]
[1758877951852,1.31144181,109680.0,109670.0,0.60324665]
[1758877952156,0.95064181,109680.0,109670.0,0.95480777]
[1758877952455,0.9278101,109680.0,109670.0,0.95480777]
[1758877952754,0.9328101,109680.0,109670.0,0.59400777]
[1758877953149,0.95562902,109680.0,109670.0,0.59400777]
[1758877953350,0.9328101,109680.0,109670.0,0.59400777]
[1758877954555,0.9328101,109680.0,109670.0,0.95480777]
[1758877955258,0.8328101,109680.0,109670.0,0.95480777]
[1758877955557,0.8328101,109680.0,109670.0,0.59400777]
[1758877955756,0.9239002,109680.0,109670.0,0.59400777]
[1758877956251,0.9239002,109680.0,109670.0,0.50290937]
[1758877956657,1.7073146,109680.0,109670.0,0.03602]
[1758877956858,1.7073146,109680.0,109670.0,0.50290937]
[1758877957358,0.8795045,109680.0,109670.0,0.50290937]
[1758877957554,1.7161045,109680.0,109670.0,0.50290937]
[1758877957761,1.6934901,109680.0,109670.0,0.50290937]
[1758877957961,1.71610244,109680.0,109670.0,0.50290937]
[1758877959150,0.38841234,109680.0,109670.0,0.59400777]
[1758877959355,0.84156,109680.0,109670.0,0.59400777]
[1758877959755,0.84156,109680.0,109670.0,0.95480777]
[1758877961362,0.9326501,109680.0,109670.0,0.95480777]
[1758877961764,0.9326501,109680.0,109670.0,0.4879184]
[1758877961963,0.9326501,109680.0,109670.0,0.95480777]
[1758877963559,0.0960901,109680.0,109670.0,0.95480777]
[1758877963760,0.9326101,109680.0,109670.0,0.95480777]
[1758877965361,0.9326101,109680.0,109670.0,0.59400777]
[1758877965865,0.9326101,109680.0,109670.0,0.50290937]
[1758877966065,0.9326101,109680.0,109670.0,0.59400787]
[1758877968275,0.9326101,109680.0,109670.0,0.1271185]
[1758877968468,0.9326101,109680.0,109670.0,0.59400787]
[1758877971875,0.9326101,109680.0,109670.0,0.03602]
[1758877972073,0.9326101,109680.0,109670.0,0.50290937]
[1758877972273,0.9326101,109680.0,109670.0,0.59400787]
[1758877974472,0.0960901,109680.0,109670.0,0.59400787]
[1758877974676,0.9324901,109680.0,109670.0,0.59400787]
[1758877977578,0.8414,109680.0,109670.0,0.59400787]
[1758877978379,0.8414,109680.0,109670.0,0.95480787]
[1758877978579,0.9324904,109680.0,109670.0,0.95480787]
[1758877979283,0.8324904,109680.0,109670.0,0.95480787]
[1758877979973,0.8324904,109680.0,109670.0,0.59400807]
[1758877980683,0.8324904,109680.0,109670.0,0.95480807]
[1758877980878,0.8324904,109680.0,109670.0,0.59400807]
[1758877981086,0.8324904,109680.0,109670.0,0.95480807]
[1758877983285,0.9274504,109680.0,109670.0,0.59400807]
[1758877984186,0.9274504,109680.0,109670.0,0.95480807]
[1758877984886,0.9274504,109680.0,109670.0,0.59400837]
[1758877985186,0.9274504,109680.0,109670.0,0.95480837]
[1758877987287,0.9500976,109680.0,109670.0,0.95480837]
[1758877987482,0.0910904,109680.0,109670.0,0.95480837]
[1758877987784,0.9274104,109680.0,109670.0,0.95480837]
[1758877988385,0.9274104,109680.0,109670.0,0.59400837]
[1758877988585,0.95005867,109680.0,109670.0,0.59400837]
[1758877989387,0.95005867,109680.0,109670.0,0.127119]
[1758877989587,0.95005867,109680.0,109670.0,0.59400837]
[1758877989788,0.9274104,109680.0,109670.0,0.59400837]
[1758877993387,0.94975018,109680.0,109670.0,0.59400837]
[1758877993589,0.9274104,109680.0,109670.0,0.59400837]
[1758877996893,0.83632,109680.0,109670.0,0.59400837]
[1758877997089,0.4518879,109690.0,109680.0,0.1267607]
[1758877997288,0.4518879,109690.0,109680.0,0.59365007]
[1758877997289,1.31046763,109690.0,109680.0,0.59365007]
[1758877997694,0.47422763,109690.0,109680.0,0.59365007]
[1758877997887,1.31046763,109690.0,109680.0,0.59365007]
[1758877998285,0.02733973,109690.0,109680.0,0.59365007]
[1758877998490,0.86357973,109690.0,109680.0,0.95445007]
[1758877998985,0.4518802,109700.0,109690.0,0.1049924]
[1758877999190,0.3831378,109700.0,109690.0,0.59364177]
[1758877999393,1.2193778,109700.0,109690.0,0.59364177]
[1758877999593,1.3104519,109700.0,109690.0,0.59364177]
[1758878000293,0.47620113,109700.0,109690.0,0.60293984]
[1758878000595,0.47620113,109700.0,109690.0,0.48594106]
[1758878000596,1.32144113,109700.0,109690.0,0.48594106]
[1758878000798,0.96060113,109700.0,109690.0,0.48594106]
[1758878001296,0.96060113,109700.0,109690.0,0.13605047]
[1758878001500,0.96060113,109700.0,109690.0,0.48594106]
[1758878003095,0.8472,109700.0,109690.0,0.48594106]
[1758878003402,0.9382741,109700.0,109690.0,0.48594106]
[1758878004297,0.9382741,109700.0,109690.0,0.47664299]
[1758878004694,0.9382341,109700.0,109690.0,0.47664299]
[1758878005900,1.64892469,109700.0,109690.0,0.03567]
[1758878006197,1.67123761,109700.0,109690.0,0.38556059]
[1758878008498,0.0910824,109690.0,109680.0,0.128309]
[1758878008698,1.27709299,109690.0,109680.0,0.47819959]
[1758878009096,0.9272024,109690.0,109680.0,0.82809018]
[1758878009900,0.83612,109690.0,109680.0,0.82809018]
[1758878010101,0.4608815,109700.0,109690.0,0.1278724]
[1758878010406,0.47419542,109700.0,109690.0,0.47776299]
[1758878010703,1.31031542,109700.0,109690.0,0.47776299]
[1758878011702,1.31031542,109700.0,109690.0,0.38668059]
[1758878012098,1.31131542,109700.0,109690.0,0.47776299]
[1758878014900,1.31131542,109700.0,109690.0,0.03679]
[1758878015100,1.31131542,109700.0,109690.0,0.38668059]
[1758878016199,1.66120601,109700.0,109690.0,0.38668059]
[1758878017698,1.66120601,109700.0,109690.0,0.03679]
[1758878017904,1.66120601,109700.0,109690.0,0.38668059]
[1758878018700,0.0910824,109690.0,109680.0,0.03722]
[1758878018900,0.80177299,109690.0,109680.0,0.38711059]
[1758878020308,0.80177299,109690.0,109680.0,0.39211059]
[1758878023713,0.4518824,109690.0,109680.0,0.39211059]
[1758878024009,0.80177299,109690.0,109680.0,0.39211059]
[1758878024811,1.63845299,109690.0,109680.0,0.39211059]
[1758878026212,0.4518824,109690.0,109680.0,0.39211059]
[1758878026412,1.2883224,109690.0,109680.0,0.74200118]
[1758878026809,1.31038679,109690.0,109680.0,0.74200118]
[1758878028501,1.31038679,109690.0,109680.0,0.04222]
[1758878028710,1.31038679,109690.0,109680.0,0.74200118]
[1758878028912,1.66027738,109690.0,109680.0,0.74200118]
[1758878030010,1.31034679,109690.0,109680.0,0.74200118]
[1758878031015,1.31074679,109690.0,109680.0,0.74200118]
[1758878032016,1.31074679,109690.0,109680.0,0.04222]
[1758878032218,1.31074679,109690.0,109680.0,0.74200118]
[1758878034417,1.31062679,109690.0,109680.0,0.74200118]
[1758878034614,1.31062679,109690.0,109680.0,0.83309188]
[1758878034814,0.47394679,109690.0,109680.0,0.83309188]
[1758878035118,1.31046679,109690.0,109680.0,0.74200118]
[1758878036715,1.31046679,109690.0,109680.0,0.76296606]
[1758878037324,0.47394679,109690.0,109680.0,0.76296606]
[1758878037524,0.87576654,109710.0,109700.0,0.03439]
[1758878037819,1.73407874,109710.0,109700.0,0.38428059]
[1758878038217,0.0910741,109700.0,109690.0,0.03439]
[1758878038523,0.0910824,109690.0,109680.0,0.41128547]
[1758878038726,1.3107146,109690.0,109680.0,0.76117606]
[1758878039025,1.3107146,109690.0,109680.0,0.75617606]
[1758878041931,1.3107146,109690.0,109680.0,0.75717606]
[1758878042334,0.9499146,109690.0,109680.0,0.75717606]
[1758878043433,0.9499146,109690.0,109680.0,0.84826686]
[1758878043731,0.9278424,109690.0,109680.0,0.84826686]
[1758878043931,0.9274824,109690.0,109680.0,0.84826686]
[1758878044432,0.0910824,109690.0,109680.0,0.84826686]
[1758878044633,0.94967663,109690.0,109680.0,1.19815745]
[1758878044929,0.94967663,109690.0,109680.0,0.84826686]
[1758878045134,0.02207413,109690.0,109680.0,0.84826686]
[1758878045335,0.85859413,109690.0,109680.0,0.84826686]
[1758878045530,0.85859413,109690.0,109680.0,1.24826686]
[1758878046634,0.83652,109690.0,109680.0,1.24826686]
[1758878046829,0.45188,109700.0,109690.0,0.1038825]
[1758878047035,1.31032924,109700.0,109690.0,0.73403118]
[1758878048537,1.31532924,109700.0,109690.0,0.73403118]
[1758878049333,1.31532924,109700.0,109690.0,0.38414059]
[1758878049933,1.31532924,109700.0,109690.0,0.73403118]
[1758878051832,1.31532924,109700.0,109690.0,0.38414059]
[1758878053837,1.31532924,109700.0,109690.0,0.47522369]
[1758878054141,1.31532924,109700.0,109690.0,0.38414059]
[1758878055637,1.31032924,109700.0,109690.0,0.38514059]
[1758878056135,1.21900924,109700.0,109690.0,0.47622389]
[1758878056334,1.31008424,109700.0,109690.0,0.82611448]
[1758878056936,1.31008424,109700.0,109690.0,0.47622389]
[1758878057937,0.38288924,109700.0,109690.0,0.47622389]
[1758878058134,0.4518603,109720.0,109710.0,0.03425]
[1758878058437,1.31001966,109720.0,109710.0,0.38414059]
[1758878060337,1.65991025,109720.0,109710.0,0.38414059]
[1758878060933,1.31501966,109720.0,109710.0,0.38414059]
[1758878061835,1.66491025,109720.0,109710.0,0.38414059]
[1758878062039,1.31501966,109720.0,109710.0,0.38414059]
[1758878062542,1.31497966,109720.0,109710.0,0.50068278]
[1758878070743,0.47893966,109720.0,109710.0,0.50068278]
[1758878070944,1.31493966,109720.0,109710.0,0.50068278]
[1758878072150,1.30993966,109720.0,109710.0,0.50068278]
[1758878072353,0.47393966,109720.0,109710.0,0.50068278]
[1758878072548,1.30993966,109720.0,109710.0,0.50068278]
[1758878074059,1.31493966,109720.0,109710.0,0.50068278]
[1758878079863,0.0910663,109710.0,109700.0,0.10605187]
[1758878080063,0.47394566,109710.0,109700.0,0.10605187]
[1758878080258,0.47394566,109710.0,109700.0,0.57248465]
[1758878081965,1.21887936,109710.0,109700.0,0.66355925]
[1758878083460,1.2878667,109710.0,109700.0,0.66355925]
[1758878084863,0.4518667,109710.0,109700.0,0.66355925]
[1758878085264,1.2878267,109710.0,109700.0,0.66355925]
[1758878085758,1.09676,109710.0,109700.0,0.66355925]
[1758878085964,0.83596,109710.0,109700.0,0.66355925]
[1758878086466,0.9270268,109710.0,109700.0,0.66355925]
[1758878086970,0.9270268,109710.0,109700.0,0.66455925]
[1758878087271,0.94909831,109710.0,109700.0,0.66455925]
[1758878087775,0.11313831,109710.0,109700.0,0.67055925]
[1758878087967,0.94909831,109710.0,109700.0,0.67055925]
[1758878088367,0.94909831,109710.0,109700.0,0.66455925]
[1758878088572,0.94909831,109710.0,109700.0,0.67055925]
[1758878088573,0.9270268,109710.0,109700.0,0.67055925]
[1758878088873,0.9275868,109710.0,109700.0,0.67055925]
[1758878089175,0.0910668,109710.0,109700.0,0.67055925]
[1758878089369,0.9274668,109710.0,109700.0,0.67055925]
[1758878089568,0.0910585,109720.0,109710.0,0.1264767]
[1758878089770,0.94940948,109720.0,109710.0,0.50184278]
[1758878091168,0.11312948,109720.0,109710.0,0.50184278]
[1758878091370,0.94920948,109720.0,109710.0,0.50184278]
[1758878091871,0.94920948,109720.0,109710.0,0.59290948]
[1758878092978,0.94908948,109720.0,109710.0,0.59290948]
[1758878093477,0.94908948,109720.0,109710.0,0.50184278]
[1758878094177,0.11312948,109720.0,109710.0,0.50184278]
[1758878094379,0.94908948,109720.0,109710.0,0.50184278]
[1758878094677,0.11312948,109720.0,109710.0,0.59290948]
[1758878094869,0.94908948,109720.0,109710.0,0.59290948]
[1758878095171,0.11312948,109720.0,109710.0,0.59290948]
[1758878095677,0.94908948,109720.0,109710.0,0.59290948]
[1758878095864,0.94908938,109720.0,109710.0,0.59290948]
[1758878096377,0.85803098,109720.0,109710.0,0.59290948]
[1758878096777,0.02207098,109720.0,109710.0,0.59290948]
[1758878097375,0.02207098,109720.0,109710.0,0.99290948]
[1758878097580,0.85803098,109720.0,109710.0,0.99290948]
[1758878098671,0.94908938,109720.0,109710.0,0.99290948]
[1758878099479,0.9270184,109720.0,109710.0,0.99290948]
[1758878099779,0.0910584,109720.0,109710.0,0.99290948]
[1758878099980,0.9270184,109720.0,109710.0,0.99290948]
[1758878100872,0.46362366,109730.0,109720.0,0.03485]
[1758878101072,1.32139587,109730.0,109720.0,0.50128278]
[1758878102679,1.32639232,109730.0,109720.0,0.50128278]
[1758878103081,1.32639232,109730.0,109720.0,0.01263]
[1758878106481,1.32639232,109730.0,109720.0,0.03396]
[1758878109782,0.0910584,109720.0,109710.0,0.03503]
[1758878109976,0.47366706,109720.0,109710.0,0.50146278]
[1758878111582,0.4518584,109720.0,109710.0,0.50146278]
[1758878116088,0.47359448,109720.0,109710.0,0.50146278]
[1758878117188,0.4518584,109720.0,109710.0,0.50146278]
[1758878117487,0.4518584,109720.0,109710.0,0.03503]
[1758878117678,0.4518584,109720.0,109710.0,0.50146278]
[1758878118783,0.47359788,109720.0,109710.0,0.50146278]
[1758878121389,0.47359788,109720.0,109710.0,0.03503]
[1758878121579,0.47359788,109720.0,109710.0,0.50146278]
[1758878123786,1.30943788,109720.0,109710.0,0.55052908]
[1758878124787,1.30943788,109720.0,109710.0,0.43391244]
[1758878128596,1.30943788,109720.0,109710.0,0.38484614]
[1758878129789,1.65925402,109720.0,109710.0,0.38484614]
[1758878129994,1.65925402,109720.0,109710.0,0.4339272]
[1758878135500,2.40907016,109720.0,109710.0,0.04908106]
[1758878135702,0.0910672,109710.0,109700.0,0.04908106]
[1758878135997,0.82342282,109710.0,109700.0,0.04908106]
[1758878136197,0.82342282,109710.0,109700.0,0.3988972]
[1758878136892,0.8324093,109710.0,109700.0,0.3988972]
[1758878137199,0.8324093,109710.0,109700.0,0.4117472]
[1758878137400,0.8374093,109710.0,109700.0,0.4117472]
[1758878137898,0.8374093,109710.0,109700.0,0.4338972]
[1758878139804,0.82842282,109710.0,109700.0,0.4338972]
[1758878140702,0.80668334,109710.0,109700.0,0.4338972]
[1758878141802,0.82806323,109710.0,109700.0,0.4338972]
[1758878142300,0.80668334,109710.0,109700.0,0.4338972]
[1758878147292,0.80668334,109710.0,109700.0,0.08408106]
[1758878147498,0.80668334,109710.0,109700.0,0.4117472]
[1758878149497,0.82805791,109710.0,109700.0,0.4117472]
[1758878150909,0.82805791,109710.0,109700.0,0.4338972]
[1758878151109,0.47824177,109710.0,109700.0,0.4338972]
[1758878151308,0.82805791,109710.0,109700.0,0.4338972]
[1758878152612,1.66377791,109710.0,109700.0,0.4338972]
[1758878153711,0.82805791,109710.0,109700.0,0.4338972]
[1758878153911,1.66377791,109710.0,109700.0,0.78371334]
[1758878154112,1.66377791,109710.0,109700.0,0.4338972]
[1758878154911,1.66377791,109710.0,109700.0,0.08408106]
[1758878155112,1.66377791,109710.0,109700.0,0.4338972]
[1758878156008,1.66377791,109710.0,109700.0,0.78371334]
[1758878156310,0.38717457,109710.0,109700.0,0.87478884]
[1758878156610,1.31396177,109710.0,109700.0,0.87478884]
[1758878156907,1.31396177,109710.0,109700.0,0.17515656]
[1758878157112,1.31396177,109710.0,109700.0,0.87478884]
[1758878158111,1.31396177,109710.0,109700.0,0.17515656]
[1758878158310,1.31396177,109710.0,109700.0,0.4338972]
[1758878158311,1.66377791,109710.0,109700.0,0.4338972]
[1758878158612,1.30896177,109710.0,109700.0,0.78371334]
[1758878159011,0.47324177,109710.0,109700.0,0.78371334]
[1758878159313,1.30892177,109710.0,109700.0,0.78371334]
[1758878160417,1.30892177,109710.0,109700.0,0.87478884]
[1758878162213,1.30892177,109710.0,109700.0,0.17515656]
[1758878162413,1.30892177,109710.0,109700.0,0.87478884]
[1758878164020,0.83568,109710.0,109700.0,1.18650778]
[1758878164717,0.9267472,109710.0,109700.0,1.18650778]
[1758878165109,0.94814513,109710.0,109700.0,1.18650778]
[1758878166318,0.9267472,109710.0,109700.0,1.18650778]
[1758878177422,0.9267472,109710.0,109700.0,1.25170334]
[1758878178921,0.9267472,109710.0,109700.0,1.18650778]
[1758878179122,0.9267472,109710.0,109700.0,1.18650898]
[1758878180626,0.9267472,109710.0,109700.0,1.09543228]
[1758878181723,0.9267472,109710.0,109700.0,1.18650898]
[1758878182623,0.9317472,109710.0,109700.0,1.18650898]
[1758878185528,0.9317472,109710.0,109700.0,0.4868767]
[1758878185830,0.9317472,109710.0,109700.0,1.58650898]
[1758878186221,0.9317472,109710.0,109700.0,1.65170454]
[1758878186629,0.9317472,109710.0,109700.0,1.41854925]
[1758878187426,0.9267472,109710.0,109700.0,1.41854925]
[1758878188130,0.9267472,109710.0,109700.0,1.32747255]
[1758878188430,0.9267472,109710.0,109700.0,1.41854925]
[1758878190828,0.9267472,109710.0,109700.0,0.92747255]
[1758878191332,0.9267472,109710.0,109700.0,0.86227699]
[1758878191534,1.2875472,109710.0,109700.0,0.50147699]
[1758878191828,2.17543589,109710.0,109700.0,0.04910486]
[1758878192231,0.0910767,109700.0,109690.0,0.08346486]
[1758878192433,0.4732884,109700.0,109690.0,0.08346486]
[1758878195933,0.48230123,109700.0,109690.0,0.08346486]
[1758878196136,0.46088953,109700.0,109690.0,0.08346486]
[1758878196436,0.47324544,109700.0,109690.0,0.08346486]
[1758878196634,0.52635943,109710.0,109700.0,0.03478]
[1758878196836,0.54772749,109710.0,109700.0,0.03478]
[1758878197031,1.38316749,109710.0,109700.0,0.50125699]
[1758878198035,1.38816749,109710.0,109700.0,0.50125699]
[1758878199840,1.31368186,109710.0,109700.0,0.50125699]
[1758878201440,1.38681987,109710.0,109700.0,0.50125699]
[1758878202041,0.55137987,109710.0,109700.0,0.50125699]
[1758878202243,0.95288186,109710.0,109700.0,0.59233309]
[1758878203136,1.31368186,109710.0,109700.0,0.50125699]
[1758878203640,1.31368186,109710.0,109700.0,0.59233309]
[1758878204742,1.31368186,109710.0,109700.0,0.03478]
[1758878205042,1.31368186,109710.0,109700.0,0.50125699]
[1758878205446,1.31368186,109710.0,109700.0,0.03478]
[1758878205648,1.31368186,109710.0,109700.0,0.50125699]
[1758878206851,1.31368186,109710.0,109700.0,0.59233359]
[1758878208353,1.31368186,109710.0,109700.0,0.50125699]